fUSD/lending_fUSD_20250112
["ID","MTS","AMOUNT","RATE_DAILY","PERIOD"]
[348594157,1736656233131,-500.0,9.995e-05,2]
[348594158,1736656233140,-500.0,9.995e-05,2]
[348594159,1736656233150,-500.0,9.995e-05,2]
[348594160,1736656233159,-500.0,9.995e-05,2]
[348594161,1736656233168,-1267.36,9.995e-05,2]
[348594162,1736656233177,-606.57,9.995e-05,2]
[348594163,1736656233186,-500.0,9.995e-05,2]
[348594164,1736656233195,-500.0,9.996e-05,2]
[348594165,1736656233205,-500.0,9.996e-05,2]
[348594166,1736656233214,-500.0,9.996e-05,2]
[348594167,1736656233223,-880.22,9.996e-05,2]
[348594168,1736656233231,-500.0,9.996e-05,2]
[348594169,1736656233240,-650.1,9.996e-05,2]
[348594170,1736656233249,-500.0,9.996e-05,2]
[348594171,1736656233259,-500.0,9.996e-05,2]
[348594172,1736656233268,-500.0,9.997e-05,2]
[348594173,1736656233278,-500.0,9.997e-05,2]
[348594174,1736656233287,-500.0,9.997e-05,2]
[348594175,1736656233296,-500.0,9.997e-05,2]
[348594176,1736656233305,-500.0,9.997e-05,2]
[348594177,1736656233314,-500.0,9.997e-05,2]
[348594178,1736656233323,-500.0,9.997e-05,2]
[348594179,1736656233332,-500.0,9.997e-05,2]
[348594180,1736656233342,-500.0,9.997e-05,2]
[348594181,1736656233351,-500.0,9.997e-05,2]
[348594182,1736656233360,-500.0,9.997e-05,2]
[348594183,1736656233369,-500.0,9.997e-05,2]
[348594184,1736656233378,-500.0,9.997e-05,2]
[348594185,1736656233388,-500.0,9.997e-05,2]
[348594186,1736656233397,-500.0,9.997e-05,2]
[348594187,1736656233406,-500.0,9.997e-05,2]
[348594188,1736656233415,-500.0,9.997e-05,2]
[348594189,1736656233424,-500.0,9.997e-05,2]
[348594190,1736656233433,-500.0,9.997e-05,2]
[348594191,1736656233442,-500.0,9.997e-05,2]
[348594192,1736656233455,-500.0,9.997e-05,2]
[348594193,1736656233464,-500.0,9.997e-05,2]
[348594194,1736656233473,-510.12,9.997e-05,2]
[348594195,1736656233483,-500.0,9.997e-05,2]
[348594196,1736656233492,-650.3,9.997e-05,2]
[348594197,1736656233501,-500.0,9.997e-05,2]
[348594198,1736656233510,-506.59393986,9.997e-05,2]
[348594199,1736656233519,-500.0,9.997e-05,2]
[348594200,1736656233528,-500.0,9.997e-05,2]
[348594201,1736656233537,-500.0,9.997e-05,2]
[348594202,1736656233547,-500.0,9.997e-05,2]
[348594203,1736656233557,-555.4,9.997e-05,2]
[348594204,1736656233566,-581.39,9.997e-05,2]
[348594205,1736656233575,-500.0,9.997e-05,2]
[348594206,1736656233584,-500.0,9.997e-05,2]
[348594207,1736656233594,-600.47,9.997e-05,2]
[348594208,1736656233603,-982.35,9.997e-05,2]
[348594209,1736656233612,-741.45,9.997e-05,2]
[348594210,1736656233621,-520.17,9.997e-05,2]
[348594211,1736656233630,-811.58,9.997e-05,2]
[348594212,1736656233639,-500.0,9.997e-05,2]
[348594213,1736656233648,-500.0,9.997e-05,2]
[348594214,1736656233658,-533.94,9.997e-05,2]
[348594215,1736656233667,-500.0,9.997e-05,2]
[348594216,1736656233676,-500.0,9.997e-05,2]
[348594217,1736656233685,-500.0,9.997e-05,2]
[348594218,1736656233694,-666.86,9.997e-05,2]
[348594219,1736656233703,-500.0,9.997e-05,2]
[348594220,1736656233712,-500.0,9.997e-05,2]
[348594221,1736656233721,-501.76428349,9.997e-05,2]
[348594222,1736656233730,-500.0,9.997e-05,2]
[348594223,1736656233739,-588.69,9.997e-05,2]
[348594224,1736656233747,-737.16,9.997e-05,2]
[348594225,1736656233756,-500.0,9.997e-05,2]
[348594226,1736656233766,-500.0,9.997e-05,2]
[348594227,1736656233775,-500.0,9.997e-05,2]
[348594228,1736656233784,-500.0,9.997e-05,2]
[348594229,1736656233795,-785.13,9.997e-05,2]
[348594230,1736656233804,-500.0,9.997e-05,2]
[348594231,1736656233813,-625.21,9.997e-05,2]
[348594232,1736656233823,-500.0,9.997e-05,2]
[348594233,1736656233832,-500.0,9.997e-05,2]
[348594234,1736656233842,-500.0,9.997e-05,2]
[348594235,1736656233851,-500.0,9.997e-05,2]
[348594236,1736656233860,-500.0,9.997e-05,2]
[348594237,1736656233870,-789.83,9.997e-05,2]
[348594238,1736656233879,-510.91524275,9.997e-05,2]
[348594239,1736656233888,-500.0,9.997e-05,2]
[348594240,1736656233897,-500.0,9.997e-05,2]
[348594241,1736656233907,-500.0,9.997e-05,2]
[348594242,1736656233916,-500.0,9.997e-05,2]
[348594243,1736656233926,-500.0,9.997e-05,2]
[348594244,1736656233935,-509.45274208,9.997e-05,2]
[348594245,1736656233944,-500.0,9.997e-05,2]
[348594246,1736656233954,-500.0,9.997e-05,2]
[348594247,1736656233963,-500.0,9.997e-05,2]
[348594248,1736656233972,-500.0,9.997e-05,2]
[348594249,1736656233982,-781.95,9.997e-05,2]
[348594250,1736656233991,-500.0,9.997e-05,2]
[348594251,1736656234001,-841.42,9.997e-05,2]
[348594252,1736656234010,-500.0,9.997e-05,2]
[348594253,1736656234020,-814.33,9.997e-05,2]
[348594254,1736656234029,-500.0,9.997e-05,2]
[348594255,1736656234039,-500.0,9.997e-05,2]
[348594256,1736656234048,-500.0,9.997e-05,2]
[348594257,1736656234058,-500.0,9.997e-05,2]
[348594258,1736656234067,-736.19,9.997e-05,2]
[348594259,1736656234077,-500.0,9.997e-05,2]
[348594260,1736656234087,-500.0,9.997e-05,2]
[348594261,1736656234096,-1228.64,9.997e-05,2]
[348594262,1736656234106,-875.83,9.997e-05,2]
[348594263,1736656234115,-512.18,9.997e-05,2]
[348594264,1736656234125,-500.0,9.997e-05,2]
[348594265,1736656234134,-500.0,9.997e-05,2]
[348594266,1736656234143,-500.0,9.997e-05,2]
[348594267,1736656234152,-558.08,9.997e-05,2]
[348594268,1736656234161,-256.89,9.997e-05,2]
[348594269,1736656234170,-500.0,9.997e-05,2]
[348594270,1736656234180,-509.1786201,9.997e-05,2]
[348594271,1736656234189,-500.0,9.997e-05,2]
[348594272,1736656234198,-876.19,9.997e-05,2]
[348594273,1736656234207,-500.0,9.997e-05,2]
[348594274,1736656234217,-500.0,9.997e-05,2]
[348594275,1736656234227,-500.0,9.997e-05,2]
[348594276,1736656234236,-500.0,9.997e-05,2]
[348594277,1736656234245,-866.08,9.997e-05,2]
[348594278,1736656234255,-500.0,9.997e-05,2]
[348594279,1736656234264,-500.0,9.997e-05,2]
[348594280,1736656234273,-507.33087612,9.997e-05,2]
[348594281,1736656234282,-500.0,9.997e-05,2]
[348594282,1736656234291,-679.65,9.997e-05,2]
[348594283,1736656234301,-500.0,9.997e-05,2]
[348594284,1736656234310,-500.0,9.997e-05,2]
[348594285,1736656234322,-582.89,9.997e-05,2]
[348594286,1736656234331,-577.34932162,9.997e-05,2]
[348594287,1736656234340,-708.06,9.997e-05,2]
[348594288,1736656234350,-1473.75,9.997e-05,2]
[348594289,1736656234359,-500.0,9.997e-05,2]
[348594290,1736656234369,-715.58,9.997e-05,2]
[348594291,1736656234378,-500.0,9.997e-05,2]
[348594292,1736656234387,-500.0,9.997e-05,2]
[348594293,1736656234397,-756.8,9.997e-05,2]
[348594294,1736656234406,-2835.9,9.997e-05,2]
[348594295,1736656234415,-548.18,9.997e-05,2]
[348594296,1736656234424,-639.72,9.997e-05,2]
[348594297,1736656234434,-503.50718678,9.997e-05,2]
[348594298,1736656234443,-1286.06,9.997e-05,2]
[348594299,1736656234455,-719.82,9.997e-05,2]
[348594300,1736656234464,-580.35,9.997e-05,2]
[348594301,1736656234474,-1065.87,9.997e-05,2]
[348594302,1736656234483,-2410.15,9.997e-05,2]
[348594303,1736656234492,-500.0,9.997e-05,2]
[348594304,1736656234503,-500.0,9.997e-05,2]
[348594305,1736656234512,-1130.34,9.997e-05,2]
[348594306,1736656234521,-633.08,9.997e-05,2]
[348594307,1736656234534,-690.91,9.997e-05,2]
[348594308,1736656234543,-1001.16,9.997e-05,2]
[348594309,1736656234552,-91.36771642,9.997e-05,2]
[348594310,1736656234922,-408.63228358,9.997e-05,2]
[348594311,1736656234931,-1548.1,9.997e-05,2]
[348594312,1736656234942,-610.98,9.997e-05,2]
[348594313,1736656234952,-532.19,9.997e-05,2]
[348594314,1736656234963,-500.0,9.997e-05,2]
[348594315,1736656234972,-500.0,9.997e-05,2]
[348594316,1736656234983,-500.0,9.997e-05,2]
[348594317,1736656234992,-1821.61,9.997e-05,2]
[348594318,1736656235001,-502.35910494,9.997e-05,2]
[348594319,1736656235011,-500.0,9.997e-05,2]
[348594320,1736656235020,-2288.99,9.997e-05,2]
[348594321,1736656235030,-503.2774497,9.997e-05,2]
[348594322,1736656235040,-503.4881602,9.997e-05,2]
[348594323,1736656235049,-558.13,9.997e-05,2]
[348594324,1736656235059,-500.0,9.997e-05,2]
[348594325,1736656235069,-500.0,9.997e-05,2]
[348594326,1736656235078,-2769.14,9.997e-05,2]
[348594327,1736656235087,-503.01554647,9.997e-05,2]
[348594328,1736656235096,-3817.35,9.997e-05,2]
[348594329,1736656235106,-500.0,9.997e-05,2]
[348594330,1736656235115,-2532.94,9.997e-05,2]
[348594331,1736656235124,-1804.66,9.997e-05,2]
[348594332,1736656235134,-788.12,9.997e-05,2]
[348594333,1736656235145,-500.0,9.997e-05,2]
[348594334,1736656235154,-1177.88,9.997e-05,2]
[348594335,1736656235163,-776.99,9.997e-05,2]
[348594336,1736656235173,-1132.31,9.997e-05,2]
[348594337,1736656235184,-500.0,9.997e-05,2]
[348594338,1736656235194,-2999.15,9.997e-05,2]
[348594339,1736656235204,-1398.64,9.997e-05,2]
[348594340,1736656235403,-662.14,9.997e-05,2]
[348594341,1736656235414,-3167.82,9.997e-05,2]
[348594342,1736656235425,-730.31,9.997e-05,2]
[348594343,1736656235436,-1778.35,9.997e-05,2]
[348594344,1736656235446,-500.0,9.997e-05,2]
[348594345,1736656235461,-500.0,9.997e-05,2]
[348594346,1736656235470,-1030.71,9.997e-05,2]
[348594347,1736656235480,-500.0,9.997e-05,2]
[348594348,1736656235492,-1060.53,9.997e-05,2]
[348594349,1736656235502,-500.0,9.997e-05,2]
[348594350,1736656235511,-500.0,9.997e-05,2]
[348594351,1736656235520,-500.0,9.997e-05,2]
[348594352,1736656235532,-1156.3742,9.997e-05,2]
[348594353,1736656235542,-500.0,9.997e-05,2]
[348594354,1736656235551,-1344.91,9.997e-05,2]
[348594355,1736656235560,-594.16,9.997e-05,2]
[348594356,1736656235570,-1884.97,9.997e-05,2]
[348594357,1736656235579,-500.0,9.997e-05,2]
[348594358,1736656235589,-1147.84,9.997e-05,2]
[348594359,1736656235598,-502.24448428,9.998e-05,2]
[348594360,1736656235608,-500.52683284,9.998e-05,2]
[348594361,1736656235620,-284.50374291,9.998e-05,2]
[348594362,1736656235631,-500.0,9.998e-05,2]
[348594363,1736656235641,-500.0,9.998e-05,2]
[348594364,1736656235650,-500.0,9.998e-05,2]
[348594365,1736656235660,-501.63749437,9.998e-05,2]
[348594366,1736656235670,-502.78190876,9.998e-05,2]
[348594367,1736656235680,-500.8906852,9.998e-05,2]
[348594368,1736656235689,-317.14101022,9.998e-05,2]
[348594369,1736656235698,-500.6241034,9.998e-05,2]
[348594370,1736656235708,-501.59608129,9.998e-05,2]
[348594371,1736656235717,-500.0,9.998e-05,2]
[348594372,1736656235728,-520.85,9.998e-05,2]
[348594373,1736656235737,-2339.86,9.998e-05,2]
[348594374,1736656235746,-500.0,9.998e-05,2]
[348594375,1736656235756,-505.47479646,9.998e-05,2]
[348594376,1736656235765,-657.09,9.998e-05,2]
[348594377,1736656235775,-413.633932,9.998e-05,2]
[348594378,1736656235784,-500.0,9.998e-05,2]
[348594379,1736656235793,-500.0,9.998e-05,2]
[348594380,1736656235803,-460.51966394,9.998e-05,2]
[348594381,1736656235812,-944.46,9.998e-05,2]
[348594382,1736656235821,-1468.48,9.998e-05,2]
[348594383,1736656235831,-500.0,9.998e-05,2]
[348594384,1736656235840,-3889.61,9.998e-05,2]
[348594385,1736656235848,-2097.66,9.998e-05,2]
[348594386,1736656235858,-500.0,9.999e-05,2]
[348594387,1736656235868,-500.0,9.999e-05,2]
[348594388,1736656235878,-500.0,9.999e-05,2]
[348594389,1736656235887,-666.82,9.999e-05,2]
[348594390,1736656235896,-500.0,9.999e-05,2]
[348594391,1736656235907,-500.0,9.999e-05,2]
[348594392,1736656235915,-500.0,9.999e-05,2]
[348594393,1736656235925,-500.0,9.999e-05,2]
[348594394,1736656235934,-207.02,9.999e-05,2]
[348594395,1736656235944,-500.0,9.999e-05,2]
[348594396,1736656235955,-507.84611081,9.999e-05,2]
[348594397,1736656235964,-500.0,9.999e-05,2]
[348594398,1736656235973,-500.0,9.999e-05,2]
[348594399,1736656235983,-502.29169325,9.999e-05,2]
[348594400,1736656235993,-500.0,9.999e-05,2]
[348594401,1736656236002,-500.0,9.999e-05,2]
[348594402,1736656236011,-500.0,9.999e-05,2]
[348594403,1736656236021,-500.0,9.999e-05,2]
[348594404,1736656236030,-198.27589731,9.999e-05,2]
[348594405,1736656236039,-500.0,9.999e-05,2]
[348594406,1736656236048,-500.0,9.999e-05,2]
[348594407,1736656236057,-728.36,9.999e-05,2]
[348594408,1736656236066,-500.0,9.999e-05,2]
[348594409,1736656236075,-500.0,9.999e-05,2]
[348594410,1736656236084,-500.0,9.999e-05,2]
[348594411,1736656236094,-500.0,9.999e-05,2]
[348594412,1736656236103,-500.0,9.999e-05,2]
[348594413,1736656236112,-500.0,9.999e-05,2]
[348594414,1736656236122,-500.0,9.999e-05,2]
[348594415,1736656236131,-500.0,9.999e-05,2]
[348594416,1736656236140,-500.0,9.999e-05,2]
[348594417,1736656236149,-2373.2,9.999e-05,2]
[348594418,1736656236158,-500.0,9.999e-05,2]
[348594419,1736656236167,-500.0,9.999e-05,2]
[348594420,1736656236176,-500.0,9.999e-05,2]
[348594421,1736656236186,-500.0,9.999e-05,2]
[348594422,1736656236195,-500.0,9.999e-05,2]
[348594423,1736656236204,-500.0,9.999e-05,2]
[348594424,1736656236213,-500.0,9.999e-05,2]
[348594425,1736656236223,-500.0,9.999e-05,2]
[348594426,1736656236232,-500.0,9.999e-05,2]
[348594427,1736656236241,-504.94560963,9.999e-05,2]
[348594428,1736656236251,-500.0,9.999e-05,2]
[348594429,1736656236261,-500.0,9.999e-05,2]
[348594430,1736656236270,-500.0,9.999e-05,2]
[348594431,1736656236280,-500.0,9.999e-05,2]
[348594432,1736656236290,-500.0,9.999e-05,2]
[348594433,1736656236299,-500.0,9.999e-05,2]
[348594434,1736656236309,-780.31,9.999e-05,2]
[348594435,1736656236319,-500.0,9.999e-05,2]
[348594436,1736656236328,-500.0,9.999e-05,2]
[348594437,1736656236338,-503.04063844,9.999e-05,2]
[348594438,1736656236347,-500.0,9.999e-05,2]
[348594439,1736656236356,-500.0,9.999e-05,2]
[348594440,1736656236365,-500.0,9.999e-05,2]
[348594441,1736656236374,-500.0,9.999e-05,2]
[348594442,1736656236383,-500.0,9.999e-05,2]
[348594443,1736656236392,-500.0,9.999e-05,2]
[348594444,1736656236401,-500.0,9.999e-05,2]
[348594445,1736656236410,-500.0,9.999e-05,2]
[348594446,1736656236421,-500.0,9.999e-05,2]
[348594447,1736656236430,-500.0,9.999e-05,2]
[348594448,1736656236439,-993.59,9.999e-05,2]
[348594449,1736656236449,-476.1949559,9.999e-05,2]
[348594450,1736656236463,-511.10501765,9.999e-05,2]
[348594451,1736656236472,-504.41438813,9.999e-05,2]
[348594452,1736656236482,-500.0,9.999e-05,2]
[348594453,1736656236492,-500.0,9.999e-05,2]
[348594454,1736656236501,-500.0,9.999e-05,2]
[348594455,1736656236510,-500.0,9.999e-05,2]
[348594456,1736656236520,-428.45835845,9.999e-05,2]
[348594457,1736656236529,-1761.93,9.999e-05,2]
[348594458,1736656236538,-503.70096958,9.999e-05,2]
[348594459,1736656236547,-500.0,9.999e-05,2]
[348594460,1736656236557,-500.0,9.999e-05,2]
[348594461,1736656236567,-506.05137109,9.999e-05,2]
[348594462,1736656236576,-500.0,9.999e-05,2]
[348594463,1736656236585,-500.0,9.999e-05,2]
[348594464,1736656236594,-500.0,9.999e-05,2]
[348594465,1736656236603,-500.0,9.999e-05,2]
[348594466,1736656236613,-500.0,9.999e-05,2]
[348594467,1736656236621,-504.63278965,9.999e-05,2]
[348594468,1736656236631,-503.90950936,9.999e-05,2]
[348594469,1736656236640,-500.0,9.999e-05,2]
[348594470,1736656236649,-500.0,9.999e-05,2]
[348594471,1736656236659,-504.54990113,9.999e-05,2]
[348594472,1736656236668,-506.74319119,9.999e-05,2]
[348594473,1736656236677,-500.0,9.999e-05,2]
[348594474,1736656236686,-500.0,9.999e-05,2]
[348594475,1736656236696,-500.0,9.999e-05,2]
[348594476,1736656236705,-502.70194886,9.999e-05,2]
[348594477,1736656236714,-504.66291372,9.999e-05,2]
[348594478,1736656236724,-500.0,9.999e-05,2]
[348594479,1736656236733,-500.0,9.999e-05,2]
[348594480,1736656236742,-504.44362602,9.999e-05,2]
[348594481,1736656236751,-1000.0,9.999e-05,2]
[348594482,1736656236760,-503.06996673,9.999e-05,2]
[348594483,1736656236771,-504.42083608,9.999e-05,2]
[348594484,1736656236780,-500.0,9.999e-05,2]
[348594485,1736656236789,-500.0,9.999e-05,2]
[348594486,1736656236800,-500.0,9.999e-05,2]
[348594487,1736656236809,-505.01331417,9.999e-05,2]
[348594488,1736656236819,-754.72,9.999e-05,2]
[348594489,1736656236828,-500.0,9.999e-05,2]
[348594490,1736656236838,-500.0,9.999e-05,2]
[348594491,1736656236847,-503.69939654,9.999e-05,2]
[348594492,1736656236856,-500.0,9.999e-05,2]
[348594493,1736656236865,-502.71911238,9.999e-05,2]
[348594494,1736656236874,-502.59820567,9.999e-05,2]
[348594495,1736656236883,-502.84135481,9.999e-05,2]
[348594496,1736656236893,-507.25545114,9.999e-05,2]
[348594497,1736656236902,-500.0,9.999e-05,2]
[348594498,1736656236911,-506.25762928,9.999e-05,2]
[348594499,1736656236921,-501.93352859,9.999e-05,2]
[348594500,1736656236930,-500.0,9.999e-05,2]
[348594501,1736656236940,-502.00893302,9.999e-05,2]
[348594502,1736656236950,-504.5778064,9.999e-05,2]
[348594503,1736656236959,-500.0,9.999e-05,2]
[348594504,1736656236968,-500.0,9.999e-05,2]
[348594505,1736656236977,-500.0,9.999e-05,2]
[348594506,1736656236986,-500.0,9.999e-05,2]
[348594507,1736656236995,-501.92380687,9.999e-05,2]
[348594508,1736656237005,-504.6073016,9.999e-05,2]
[348594509,1736656237015,-503.56542541,9.999e-05,2]
[348594510,1736656237025,-500.0,9.999e-05,2]
[348594511,1736656237034,-259.16358215,9.999e-05,2]
[348594512,1736656237060,-246.26457312,9.999e-05,2]
[348594513,1736656237070,-53.72542688,9.999e-05,2]
[348594514,1736656237080,-452.2849963,9.999e-05,2]
[348594515,1736656237090,-500.0,9.999e-05,2]
[348594516,1736656237099,-337.43143863,9.999e-05,2]
[348594517,1736656237107,-83.88852199,9.999e-05,2]
[348594518,1736656237120,-416.11147801,9.999e-05,2]
[348594519,1736656237129,-500.0,9.999e-05,2]
[348594520,1736656237139,-500.0,9.999e-05,2]
[348594521,1736656237148,-501.32925466,9.999e-05,2]
[348594522,1736656237157,-142.45996644,9.999e-05,2]
[348594523,1736656237199,-2107.12003356,9.999e-05,2]
[348594524,1736656237208,-500.0,9.999e-05,2]
[348594525,1736656237217,-501.23783047,9.999e-05,2]
[348594526,1736656237226,-504.35285494,9.999e-05,2]
[348594527,1736656237235,-500.0,9.999e-05,2]
[348594528,1736656237244,-501.57055356,9.999e-05,2]
[348594529,1736656237253,-504.51681991,9.999e-05,2]
[348594530,1736656237264,-500.0,9.999e-05,2]
[348594531,1736656237272,-500.0,9.999e-05,2]
[348594532,1736656237281,-500.0,9.999e-05,2]
[348594533,1736656237290,-501.34894652,9.999e-05,2]
[348594534,1736656237299,-500.0,9.999e-05,2]
[348594535,1736656237309,-500.84254213,9.999e-05,2]
[348594536,1736656237317,-500.0,9.999e-05,2]
[348594537,1736656237326,-501.83771637,9.999e-05,2]
[348594538,1736656237335,-507.33194453,9.999e-05,2]
[348594539,1736656237344,-501.70031267,9.999e-05,2]
[348594540,1736656237353,-502.6353164,9.999e-05,2]
[348594541,1736656237362,-500.0,9.999e-05,2]
[348594542,1736656237371,-502.49568951,9.999e-05,2]
[348594543,1736656237380,-500.0,9.999e-05,2]
[348594544,1736656237390,-500.0,9.999e-05,2]
[348594545,1736656237399,-500.0,9.999e-05,2]
[348594546,1736656237408,-1490.2,9.999e-05,2]
[348594547,1736656237417,-500.0,9.999e-05,2]
[348594548,1736656237426,-415.02574676,9.999e-05,2]
[348594549,1736656237435,-500.0,9.999e-05,2]
[348594550,1736656237444,-500.0,9.999e-05,2]
[348594551,1736656237455,-500.0,9.999e-05,2]
[348594552,1736656237465,-500.0,9.999e-05,2]
[348594553,1736656237475,-500.0,9.999e-05,2]
[348594554,1736656237484,-500.0,9.999e-05,2]
[348594555,1736656237494,-500.0,9.999e-05,2]
[348594556,1736656237504,-500.0,9.999e-05,2]
[348594557,1736656237515,-500.0,9.999e-05,2]
[348594558,1736656237524,-500.0,9.999e-05,2]
[348594559,1736656237535,-500.0,9.999e-05,2]
[348594560,1736656237544,-500.0,9.999e-05,2]
[348594561,1736656237553,-500.0,9.999e-05,2]
[348594562,1736656237562,-306.25977711,9.999e-05,2]
[348594563,1736656237571,-500.0,9.999e-05,2]
[348594564,1736656237579,-586.11841025,9.999e-05,2]
[348594565,1736656237588,-503.62551902,9.999e-05,2]
[348594566,1736656237597,-533.37,9.999e-05,2]
[348594567,1736656237606,-500.0,9.999e-05,2]
[348594568,1736656237616,-507.04392902,9.999e-05,2]
[348594569,1736656237625,-170.24,9.999e-05,2]
[348594570,1736656237634,-255.89737176,9.999e-05,2]
[348594571,1736656237643,-500.0,9.999e-05,2]
[348594572,1736656237651,-3320.91,9.999e-05,2]
[348594573,1736656237660,-500.0,9.999e-05,2]
[348594574,1736656237669,-500.0,9.999e-05,2]
[348594575,1736656237679,-500.0,9.999e-05,2]
[348594576,1736656237687,-500.0,9.999e-05,2]
[348594577,1736656237696,-505.89442111,9.999e-05,2]
[348594578,1736656237706,-500.0,9.999e-05,2]
[348594579,1736656237715,-569.78620414,9.999e-05,2]
[348594580,1736656237723,-304.03344055,9.999e-05,2]
[348594581,1736656237732,-1299.26,9.999e-05,2]
[348594582,1736656237741,-500.0,9.999e-05,2]
[348594583,1736656237750,-500.0,9.999e-05,2]
[348594584,1736656237759,-508.43838309,9.999e-05,2]
[348594585,1736656237770,-528.62151466,9.999e-05,2]
[348594586,1736656237779,-504.01314676,9.999e-05,2]
[348594587,1736656237788,-500.0,9.999e-05,2]
[348594588,1736656237798,-500.0,9.999e-05,2]
[348594589,1736656237807,-500.0,9.999e-05,2]
[348594590,1736656237817,-500.0,9.999e-05,2]
[348594591,1736656237826,-506.20269691,9.999e-05,2]
[348594592,1736656237834,-503.39389526,9.999e-05,2]
[348594593,1736656237843,-1174.38,9.999e-05,2]
[348594594,1736656237853,-500.0,9.999e-05,2]
[348594595,1736656237861,-503.71897851,9.999e-05,2]
[348594596,1736656237871,-500.0,9.999e-05,2]
[348594597,1736656237880,-500.0,9.999e-05,2]
[348594598,1736656237889,-2099.65,9.999e-05,2]
[348594599,1736656237898,-500.0,9.999e-05,2]
[348594601,1736656237907,-354.84473209,9.999e-05,2]
[348594603,1736656237916,-500.0,9.999e-05,2]
[348594605,1736656237925,-1208.65,9.999e-05,2]
[348594606,1736656237934,-506.63770181,9.999e-05,2]
[348594608,1736656237943,-500.0,9.999e-05,2]
[348594610,1736656237952,-503.34604659,9.999e-05,2]
[348594612,1736656237961,-500.0,9.999e-05,2]
[348594614,1736656237970,-233.48428148,9.999e-05,2]
[348594616,1736656237980,-500.0,9.999e-05,2]
[348594618,1736656237989,-1503.56,9.999e-05,2]
[348594620,1736656237998,-1185.61,9.999e-05,2]
[348594622,1736656238008,-500.0,9.999e-05,2]
[348594624,1736656238017,-500.0,9.999e-05,2]
[348594626,1736656238027,-508.27323068,9.999e-05,2]
[348594628,1736656238036,-995.05,9.999e-05,2]
[348594630,1736656238046,-1273.34,9.999e-05,2]
[348594632,1736656238055,-500.0,9.999e-05,2]
[348594634,1736656238065,-500.0,9.999e-05,2]
[348594636,1736656238075,-500.0,9.999e-05,2]
[348594638,1736656238084,-500.0,9.999e-05,2]
[348594640,1736656238093,-506.13015135,9.999e-05,2]
[348594642,1736656238102,-500.0,9.999e-05,2]
[348594646,1736656238111,-500.0,9.999e-05,2]
[348594650,1736656238120,-500.0,9.999e-05,2]
[348594652,1736656238129,-618.36,9.999e-05,2]
[348594655,1736656238139,-504.76302848,9.999e-05,2]
[348594658,1736656238148,-500.0,9.999e-05,2]
[348594661,1736656238157,-500.0,9.999e-05,2]
[348594664,1736656238167,-2536.38,9.999e-05,2]
[348594667,1736656238176,-500.0,9.999e-05,2]
[348594669,1736656238185,-500.0,9.999e-05,2]
[348594670,1736656238195,-520.90083521,9.999e-05,2]
[348594671,1736656238204,-500.0,9.999e-05,2]
[348594672,1736656238213,-500.0,9.999e-05,2]
[348594673,1736656238223,-1784.22,9.999e-05,2]
[348594674,1736656238233,-500.0,9.999e-05,2]
[348594675,1736656238242,-500.0,9.999e-05,2]
[348594676,1736656238251,-1488.02,9.999e-05,2]
[348594677,1736656238261,-500.0,9.999e-05,2]
[348594678,1736656238270,-500.0,9.999e-05,2]
[348594679,1736656238280,-500.0,9.999e-05,2]
[348594680,1736656238289,-578.45793296,9.999e-05,2]
[348594681,1736656238298,-500.0,9.999e-05,2]
[348594682,1736656238307,-3344.99,9.999e-05,2]
[348594683,1736656238316,-772.01,9.999e-05,2]
[348594684,1736656238325,-2691.47,9.999e-05,2]
[348594685,1736656238334,-500.0,9.999e-05,2]
[348594686,1736656238343,-500.0,9.999e-05,2]
[348594687,1736656238352,-500.0,9.999e-05,2]
[348594688,1736656238360,-500.0,9.999e-05,2]
[348594689,1736656238370,-280.23507633,9.999e-05,2]
[348594690,1736656238380,-212.51,9.999e-05,2]
[348594691,1736656238390,-566.0,9.999e-05,2]
[348594692,1736656238401,-635.408,9.999e-05,2]
[348594693,1736656238411,-151.412,9.999e-05,2]
[348594694,1736656238419,-1861.0,9.999e-05,2]
[348594695,1736656238429,-2944.0,9.999e-05,2]